Cogmind - Beta 11 @@@ ROGUE MODE // 2022.04.17 @ 00:05:12 Player: Momo Result: Destroyed by as-84292 with Assembled Blade Performance ------------- Evolutions (0) 0 Regions Visited (2) 400 Robots Destroyed (21) 105 Value Destroyed (457) 457 Prototype IDs (0) 0 Alien Tech Used (0) 0 Bonus (0) 0 TOTAL SCORE: 962 Bonus ------- None Cogmind --------- Core Integrity 0/250 Matter 280/300 Energy 500/500 System Corruption 0% Temperature Cool (0) Movement Core (250) Ox4 Location -10/Mines Parts ------- > --- POWER (1) -------- Ion Engine > --- PROPULSION (2) --- (None) > --- UTILITY (2) ------ Small Storage Unit High-capacity Battery > --- WEAPON (2) ------- (None) > --- INVENTORY (8) ---- Large Storage Unit Sensor Array Light Assault Rifle Light Assault Rifle Grenade Launcher Hammer Peak State ------------ > --- POWER ------------ Light Ion Engine > --- PROPULSION ------- Light Treads Light Treads > --- UTILITY ---------- Small Storage Unit High-capacity Battery > --- WEAPON ----------- Medium Laser Light Assault Rifle > --- INVENTORY -------- (None) [Rating: 7] Favorites ----------- Power Ion Engine Engine Ion Engine Propulsion Light Treads Treads Light Treads Leg Aluminum Leg Utility Small Storage Unit Storage Small Storage Unit Weapon Light Assault Rifle Energy Gun Medium Laser Ballistic Gun Light Assault Rifle Launcher Grenade Launcher Impact Weapon Hammer Build | -11 -10 -10 ------- Run | Scr Mat Min Slots Evolved . | . . . Power . | . . . Propulsion . | . . . Utility . | . . . Weapon . | . . . Parts Attached 16 | 6 10 . Power 2 | 1 1 . Engine 2 | 1 1 . Core . | . . . Reactor . | . . . Propulsion 5 | 2 3 . Treads 3 | 2 1 . Leg 2 | . 2 . Wheel . | . . . Hover . | . . . Flight . | . . . Utility 2 | 1 1 . Device . | . . . Storage 2 | 1 1 . Processor . | . . . Hackware . | . . . Protection . | . . . Artifact . | . . . Weapon 7 | 2 5 . Energy Gun 2 | 1 1 . Energy Cannon . | . . . Ballistic Gun 2 | 1 1 . Ballistic Cannon . | . . . Launcher 2 | . 2 . Special Weapon . | . . . Impact Weapon 1 | . 1 . Slashing Weapon . | . . . Piercing Weapon . | . . . Special Melee Weapon . | . . . Unidentified Prototypes . | . . . Parts Lost 8 | . 4 4 Power 1 | . 1 . Propulsion 4 | . 2 2 Utility . | . . . Weapon 3 | . 1 2 Highest Loss Streak 4 | . 2 4 To Critical Strikes . | . . . Average Slot Usage (%) 86 | . 84 100 Engine 10 | . 9 14 Treads 13 | . 15 . Leg 8 | . 6 28 Storage 26 | . 26 28 Energy Gun 4 | . 5 . Ballistic Gun 13 | . 13 14 Launcher 5 | . 4 14 Impact Weapon 2 | . 2 . Naked Turns . | . . . Heaviest Build 18 | 11 18 18 Greatest Support 40 | 40 40 20 Greatest Overweight (x) 3 | . 3 . Average Overweight (x) . | . . . Largest Inventory Capacity 8 | 8 8 8 Average Capacity 7 | 7 8 8 Most Carried 6 | . 5 6 Average Carried 2 | . 2 5 Final Capacity 8 | 8 8 8 Final Carried 6 | . 5 6 Class Distribution -------------------- 100% | Mutant Dominant Class ---------------- Mutant | -10/Materials Mutant | -10/Mines Resources | -11 -10 -10 ----------- Run | Scr Mat Min Matter Collected 459 | 166 283 10 Remotely . | . . . Salvage Created 770 | 26 715 29 Parts 29 | 1 24 4 Haulers Intercepted . | . . . Recyclers Shooed 3 | . 3 . Parts Field Recycled . | . . . Retrieved Matter . | . . . Parts Self-Destructed . | . . . Prevented . | . . . Kills | -11 -10 -10 ------- Run | Scr Mat Min Combat Hostiles Destroyed 21 | . 13 8 Guns 8 | . 8 . AOE 13 | . 5 8 Classes Destroyed 5 | 1 3 1 Tunneler 1 | 1 . . Recycler 4 | . 4 . Swarmer 6 | . 3 3 Grunt 10 | . 10 . Assembled 5 | . . 5 Best Kill Streak 5 | 1 4 5 Combat Bots Only 5 | . 3 5 Max Kills in Single Turn 3 | 1 2 3 Gunslinging . | . . . Exploded 3 | . 2 3 Melee . | . . . Uniques/NPCs Destroyed . | . . . Combat | -11 -10 -10 -------- Run | Scr Mat Min Damage Taken 1148 | . 713 435 Core 251 | . 100 151 Absorbed by Shields . | . . . Core Remaining (%) 100 | 100 . . Volleys Fired 78 | 1 72 5 Largest 2 | 2 2 1 Hottest 70 | 70 70 30 Shots Fired 97 | 2 90 5 Gun 88 | 2 86 . Cannon . | . . . Launcher 9 | . 4 5 Special . | . . . Kinetic 69 | 1 68 . Thermal 19 | 1 18 . Explosive 9 | . 4 5 Electromagnetic . | . . . Robot Hit Streak 8 | 1 8 2 Robot Miss Streak 3 | . 3 1 Penetration Max . | . . . Secondary Targets 1 | . 1 . Max Gunslinging Chain 1 | . 1 . Shots Hit Robots 66 | 1 63 2 Core Hits 51 | 2 31 18 Critical Kills . | . . . Critical Parts Destroyed . | . . . Critical Strikes . | . . . Melee Attacks 3 | . 3 . Impact 3 | . 3 . Slashing . | . . . Piercing . | . . . Sneak Attacks . | . . . Combat Hostiles . | . . . Follow-up Attacks . | . . . Damage Inflicted 1683 | 21 969 693 Guns 552 | 21 531 . Cannons . | . . . Explosions 1070 | . 377 693 Melee 61 | . 61 . Ramming . | . . . Kinetic 415 | 9 406 . Thermal 137 | 12 125 . Explosive 1070 | . 377 693 Electromagnetic . | . . . Impact 61 | . 61 . Slashing . | . . . Piercing . | . . . Highest Corruption . | . . . Average Corruption . | . . . Corruption Purged . | . . . Corruption Blocked . | . . . Overload Shots . | . . . Overflow Damage 72 | . 72 . Projectiles . | . . . Explosions 72 | . 72 . Melee . | . . . Knockbacks 2 | . 2 . Impact 2 | . 2 . Kinetic . | . . . Secondary . | . . . Self-Inflicted Damage 97 | . . 97 Shots 3 | . . 3 Rammed . | . . . Targets Rammed . | . . . Kicked . | . . . Crushed . | . . . Highest Temperature 152 | 30 152 . Average Temperature 49 | 18 50 . Received Heat Transfer 405 | . 405 . Siege Activations . | . . . Robots Corrupted . | . . . Combat Hostiles . | . . . Parts Fried . | . . . Impact Corruptions . | . . . Robots Melted . | . . . Combat Hostiles . | . . . Parts Melted 1 | . 1 . Heat Transferred 407 | 37 370 . Parts Sabotaged . | . . . Parts Stolen . | . . . Parts Stripped . | . . . Power Chain Reactions . | . . . Missiles Intercepted . | . . . Alert | -11 -10 -10 ------- Run | Scr Mat Min Peak Influence 307 | 5 307 255 Initial 119 | . 3 119 Average 122 | . 118 212 Maximum Alert Level 1 | . 1 1 Low Security (%) 77 | 100 87 . Level 1 22 | . 12 100 Level 2 . | . . . Level 3 . | . . . Level 4 . | . . . Level 5 . | . . . High Security . | . . . Max Security . | . . . Squads Dispatched 3 | . 3 . Investigation 1 | . 1 . Extermination . | . . . Reinforcement 2 | . 2 . Assault . | . . . Garrison . | . . . Intercept . | . . . Searches Triggered . | . . . Construction Impeded . | . . . Haulers Reinforced . | . . . Active Scanning Responses . | . . . Cargo Convoy Interrupts . | . . . Stealth | -11 -10 -10 --------- Run | Scr Mat Min Distress Signals 1 | . 1 . Communications Jammed . | . . . Distress Signals . | . . . Times Spotted 35 | . 24 11 Peak Tracking Total 11 | . 5 11 Tactical Retreats . | . . . Traps | -11 -10 -10 ------- Run | Scr Mat Min Traps Triggered 2 | . 2 . Indirectly . | . . . Trap Hack Attempts . | . . . Triggered . | . . . Disarmed . | . . . Reprogrammed . | . . . Reused . | . . . Traps Extracted . | . . . Installed . | . . . Triggered . | . . . Machines | -11 -10 -10 ---------- Run | Scr Mat Min Machines Disabled . | . . . Max in Single Turn . | . . . Machines Sabotaged . | . . . Garrisons Compromised . | . . . Overloaded Fab Kills . | . . . Hacking | -11 -10 -10 --------- Run | Scr Mat Min Machines Accessed 3 | . 3 . Terminals 3 | . 3 . Fabricators . | . . . Repair Stations . | . . . Recycling Units . | . . . Scanalyzers . | . . . Garrison Access . | . . . Total Hacks 6 | . 6 . Successful 1 | . 1 . Failed 5 | . 5 . Catastrophic 2 | . 2 . Database Lockouts . | . . . Manual 6 | . 6 . Terminals 6 | . 6 . Fabricators . | . . . Repair Stations . | . . . Recycling Units . | . . . Scanalyzers . | . . . Garrison Access . | . . . Terminal Hacks 1 | . 1 . Branch Access Points 1 | . 1 . Fabricator Hacks . | . . . Repair Station Hacks . | . . . Recycling Unit Hacks . | . . . Scanalyzer . | . . . Garrison Access Hacks . | . . . Unauthorized Hacks . | . . . Terminals . | . . . Fabricators . | . . . Repair Stations . | . . . Recycling Units . | . . . Scanalyzers . | . . . Garrison Access . | . . . Data Cores Recovered . | . . . Used . | . . . Hacking Detections 2 | . 2 . Full Trace Events . | . . . Feedback Events . | . . . Feedback Blocked . | . . . Robot Schematics Acquired . | . . . Robots Built . | . . . Authchips . | . . . Time . | . . . Total Robot Build Rating . | . . . Part Schematics Acquired . | . . . Parts Built . | . . . Authchips . | . . . Time . | . . . Total Part Build Rating . | . . . Parts Repaired . | . . . Time . | . . . Parts Recycled . | . . . Recycled Matter . | . . . Retrieved Matter . | . . . Retrieved Components . | . . . Parts Scanalyzed . | . . . Part Schematics Acquired . | . . . Parts Damaged . | . . . Bothacking | -11 -10 -10 ------------ Run | Scr Mat Min Used RIF Installer . | . . . Robots Hacked . | . . . Non-combat . | . . . Combat . | . . . Robot Hacks Applied . | . . . Relay Couplers Released . | . . . Fabnet Peak Effective % . | . . . Robots Rewired . | . . . Allies Hacked . | . . . Hacks Repelled . | . . . Allies | -11 -10 -10 -------- Run | Scr Mat Min Total Allies . | . . . Largest Group . | . . . Highest-Rated Group . | . . . Highest-Rated Ally . | . . . Total Orders . | . . . Ally Attacks . | . . . Total Damage . | . . . Kills . | . . . Allies Corrupted . | . . . Allies Melted . | . . . Intel | -11 -10 -10 ------- Run | Scr Mat Min Robot Analysis Total . | . . . Derelict Logs Recovered 2 | . . 2 Drone Launches . | . . . Drone Recoveries . | . . . Exploration | -11 -10 -10 ------------- Run | Scr Mat Min Turns Passed 847 | 53 690 104 Spaces Moved 417 | 27 312 78 Core 10 | 1 9 . Treads 195 | 26 169 . Legs 212 | . 134 78 Wheels . | . . . Hover . | . . . Flight . | . . . Fastest Speed 50 | 50 120 120 Average Speed 155 | 155 164 120 Slowest Speed 200 | 160 200 120 Overloaded Moves . | . . . Propulsion Burnouts . | . . . Robots Hopped . | . . . Cave-ins Triggered . | . . . Exploration Rate (%) 32 | 3 72 23 Regions Visited 2 Branch Regions 1 Pre-discovered Areas . | . . . Known Exits Taken 1 | . 1 . Unknown Exits Taken 1 | 1 . . Scrap Searched . | . . . Spaces Dug . | . . . Terrain Destroyed 53 | . 22 31 Melee . | . . . Projectile . | . . . AOE 53 | . 22 31 Terrain Rammed . | . . . Walls Destroyed . | . . . Machines Disabled . | . . . Actions | -11 -10 -10 --------- Run | Scr Mat Min Total 521 | 33 404 84 Wait 2 | . 2 . Move 415 | 26 311 78 Hop . | . . . Pick Up 6 | . 5 1 Fast Attach 13 | 6 7 . Attach 1 | . 1 . Detach 1 | . 1 . Swap 2 | . 2 . Drop . | . . . Fire 78 | 1 72 5 Melee 3 | . 3 . Ram . | . . . Kick . | . . . Crush . | . . . Escape Stasis . | . . . Rewire . | . . . Trap . | . . . Miscellaneous . | . . . Route ------- -11/Scrapyard -10/Materials (discovered 5 exits: [*Mat x3] / *Min x2) -10/Mines History --------- Turn | Location | Event 18 | -11/Scrapyard | Discovered new exit (range 16) 54 | -11/Scrapyard | Entered Materials 149 | -10/Materials | Discovered new exit (range 14) 235 | -10/Materials | Discovered new exit (range 16) 301 | -10/Materials | Build established: Mutant 583 | -10/Materials | Discovered new exit (range 16) 684 | -10/Materials | Discovered new exit (range 14) 713 | -10/Materials | Identified exit to Mines 744 | -10/Materials | Entered Mines 745 | -10/Mines | Core integrity fell below 50% 777 | -10/Mines | Learned Materials terminal intel 830 | -10/Mines | Assembled infested the area 839 | -10/Mines | Learned 4 Materials zone layouts 846 | -10/Mines | Core integrity fell below 20% 848 | -10/Mines | Destroyed by as-84292 with Assembled Blade Last Messages --------------- 00744_ S-10 Pest destroyed. 00748_ Acquired 8 matter. 00749_ Acquired 2 matter. 00751_ Acquired Lgt. Assault Rifle. 00777_ Acquired derelict log, extracted data. Data stored: Materials terminal intel. 00830_ ALERT: Infestation in the mines, dispatching Demolisher response squad. 00831_ K-01 Serf collects debris. 00839_ Acquired derelict log, extracted data. Data stored: Materials zone layouts (x4). 00843_ as-38993 destroyed. 00845_ as-01735 destroyed. 00846_ Aluminum Leg destroyed. 00847_ Lgt. Assault Rifle destroyed. 00847_ as-76061 destroyed. 00847_ as-22551 destroyed. 00847_ as-74434 destroyed. 00847_ Grenade Launcher destroyed. 00848_ Aluminum Leg destroyed. Map ----- +----------------------------------------------------+ | ?????????????????????????????????????????????????? | | ?????????????????????????????????????????????????? | | ?????????????????????????????????????????????????? | | ?????????????????????????????????????????????????? | | ?????????????????????????????????????????????????? | | ???????????????????????????"" ???????????????????? | | ???????????????????????????"" ???????????????????? | | ????????????????? ????????? ?????????????####? | | ???????????????? ???????? ?????????????# ## | | ????????????????? ??????? ??????????????# # | | ?????????????????? ??????# ?????????????## # | | ??????????????????# ???## ?????????????## | | ?????????????????## #?## ?????????????# | | ???????????????### ## ??????????????# %[ | | ??????????????? ??????????????## | | ???????????????? ????????????????## % | | ??????????????????? ?????????????????##### | | ?????????????????????# #?????????????????????? | | ??????????????????????# #####################?? | | ??????????????????????# ### | | ??????????????????????## | | ???????????????????????# ############# ### ## | | ???????????????????????# ##??????????# #?# ## | | ????????????????????#### #??????????# #?# ## | | ????????????????????# ##?????????# #?# ### # | | ?????????????????????# a@ #????????? #? ??# # | | ???????????????????# aaa #????????###? ?# # | | ???????????????? ?????????? #?# # | | ????????????# a ####????????? #### # | | ????????????## % # ##???????????? ?# | | ?????????????## ## ##????????????? ?# ## | | ??????????????# a ?#####?????????????? ?# #? | | ??????????????# #????????????????????? #?# #? | | ??????????????# ??????????????????????#??# #? | | ??????????????#### ??????????????????????????# #? | | ?????????????????#??????????????????????????? #? | | ????????????????????????????????????????????? #? | | ???????????????????????????????????????????? #? | | ???????????????????????????????????????????? #? | | ??????????????????????????????????????????? #? | | ??????????????????????????????????????????? ? | | ?????????????????????????????????????????? ? | | ?????????????????????????????????????????? ? | | ????????????????????????????????????????? ? | | ????????????????????????????????????????? ? | | ???????????????????????????????????????????## | | ????????????????????????????????????????????? | | ????????????????????????????????????????????? ? | | ?????????????????????????????????????????????????? | | ?????????????????????????????????????????????????? | +----------------------------------------------------+ Best States ------------- Heat Dissipation 25 Energy Generation 10 Energy Capacity 500 Matter Stores 300 Matter Capacity 300 Sight Range 16 Terrain Scan Density 10 Evasion (%) 55 Recoil Reduction 2 Item Schematics ----------------- None Robot Schematics ------------------ None Fabricated ------------ Nothing Alien Tech Used ----------------- None Achievements -------------- None Challenges ------------ None Game ------ Seed CargoTransportFemtoactuators Manual? 0 Play Time 00:06:11 Cumulative 252.6 hours Start 2022.04.16 @ 23:59:37 End 2022.04.17 @ 00:05:12 Sessions 1 Manual Loads 0 Difficulty Rogue Special Mode None Game No. 122 Rogue 118 Adventurer 0 Explorer 4 Win Type - Total 15 Types 4/0/2/3/1/2/3/0/0 Lore% 75 Gallery% 80 Achievement% 72 Wizard Run 0 Options --------- ASCII 0 Keyboard 0 Movement Mouse Keybinds 0 Fullscreen 1 Font 18/SmallcapsGlow Map View 76x50 Tactical HUD 1 Map Filters NONE Filters NONE Steam 1 RUN: 4c848541-ee1c-45af-9257-c6a3d96daf2b